{"text_format":"3","workbook":"xlsx","n_sheets":2,"sheets":["Інвентар","Настройки"],"not_rendered":{"defined_names":4},"read":"whole","date_system":"1900"}

{"sheet":"Інвентар","index":0,"n_rows":35,"n_cols":6,"rows_kept":35,"merged":[[0,1,2,2],[0,4,0,5]]}
[]
[{"$nulls":4},"Виділіть елементи, яким понад"]
[{"$nulls":4},4]
[]
[null,"ІДЕНТИФІКАТОР ОБЛАДНАННЯ","ІМ'Я ЕЛЕМЕНТА","ПРИЗНАЧЕНО","ДАТА ВИПУСКУ","ВІК ЕЛЕМЕНТА"]
[null,"ЕЛЕМЕНТ0001","стілець","Працівник 1",{"$f":"TODAY()-25","v":"2013-01-05"},{"$f":"IF(tblЗапаси_обладнання[[#This Row],[ДАТА ВИПУСКУ]]<>\"\",TODAY()-tblЗапаси_обладнання[[#This Row],[ДАТА ВИПУСКУ]],\"\")","v":{"v":25,"d":"25 дн."}}]
[null,"ЕЛЕМЕНТ0002","лазерний принтер","Працівник 2",{"$f":"TODAY()-479","v":"2011-10-09"},{"$f":"IF(tblЗапаси_обладнання[[#This Row],[ДАТА ВИПУСКУ]]<>\"\",TODAY()-tblЗапаси_обладнання[[#This Row],[ДАТА ВИПУСКУ]],\"\")","v":{"v":479,"d":"479 дн."}}]
[null,"ЕЛЕМЕНТ0003","сканер","Працівник 3",{"$f":"TODAY()-177","v":"2012-08-06"},{"$f":"IF(tblЗапаси_обладнання[[#This Row],[ДАТА ВИПУСКУ]]<>\"\",TODAY()-tblЗапаси_обладнання[[#This Row],[ДАТА ВИПУСКУ]],\"\")","v":{"v":177,"d":"177 дн."}}]
[null,"ЕЛЕМЕНТ0004","лазерний принтер","Працівник 7",{"$f":"TODAY()-18","v":"2013-01-12"},{"$f":"IF(tblЗапаси_обладнання[[#This Row],[ДАТА ВИПУСКУ]]<>\"\",TODAY()-tblЗапаси_обладнання[[#This Row],[ДАТА ВИПУСКУ]],\"\")","v":{"v":18,"d":"18 дн."}}]
[null,"ЕЛЕМЕНТ0005","кавоварка","Працівник 20",{"$f":"TODAY()-227","v":"2012-06-17"},{"$f":"IF(tblЗапаси_обладнання[[#This Row],[ДАТА ВИПУСКУ]]<>\"\",TODAY()-tblЗапаси_обладнання[[#This Row],[ДАТА ВИПУСКУ]],\"\")","v":{"v":227,"d":"227 дн."}}]
[null,"ЕЛЕМЕНТ0006","сканер","Працівник 14",{"$f":"TODAY()-50","v":"2012-12-11"},{"$f":"IF(tblЗапаси_обладнання[[#This Row],[ДАТА ВИПУСКУ]]<>\"\",TODAY()-tblЗапаси_обладнання[[#This Row],[ДАТА ВИПУСКУ]],\"\")","v":{"v":50,"d":"50 дн."}}]
[null,"ЕЛЕМЕНТ0007","стіл","Працівник 4",{"$f":"TODAY()-120","v":"2012-10-02"},{"$f":"IF(tblЗапаси_обладнання[[#This Row],[ДАТА ВИПУСКУ]]<>\"\",TODAY()-tblЗапаси_обладнання[[#This Row],[ДАТА ВИПУСКУ]],\"\")","v":{"v":120,"d":"120 дн."}}]
[null,"ЕЛЕМЕНТ0008","копіювальна техніка","Працівник 12",{"$f":"TODAY()-499","v":"2011-09-19"},{"$f":"IF(tblЗапаси_обладнання[[#This Row],[ДАТА ВИПУСКУ]]<>\"\",TODAY()-tblЗапаси_обладнання[[#This Row],[ДАТА ВИПУСКУ]],\"\")","v":{"v":499,"d":"499 дн."}}]
[null,"ЕЛЕМЕНТ0009","додатковий монітор","Працівник 8",{"$f":"TODAY()-30","v":"2012-12-31"},{"$f":"IF(tblЗапаси_обладнання[[#This Row],[ДАТА ВИПУСКУ]]<>\"\",TODAY()-tblЗапаси_обладнання[[#This Row],[ДАТА ВИПУСКУ]],\"\")","v":{"v":30,"d":"30 дн."}}]
[null,"ЕЛЕМЕНТ0010","дошка","Працівник 19",{"$f":"TODAY()-50","v":"2012-12-11"},{"$f":"IF(tblЗапаси_обладнання[[#This Row],[ДАТА ВИПУСКУ]]<>\"\",TODAY()-tblЗапаси_обладнання[[#This Row],[ДАТА ВИПУСКУ]],\"\")","v":{"v":50,"d":"50 дн."}}]
[null,"ЕЛЕМЕНТ0011","копіювальна техніка","Працівник 12",{"$f":"TODAY()-450","v":"2011-11-07"},{"$f":"IF(tblЗапаси_обладнання[[#This Row],[ДАТА ВИПУСКУ]]<>\"\",TODAY()-tblЗапаси_обладнання[[#This Row],[ДАТА ВИПУСКУ]],\"\")","v":{"v":450,"d":"450 дн."}}]
[null,"ЕЛЕМЕНТ0012","бланк","Працівник 18",{"$f":"TODAY()-420","v":"2011-12-07"},{"$f":"IF(tblЗапаси_обладнання[[#This Row],[ДАТА ВИПУСКУ]]<>\"\",TODAY()-tblЗапаси_обладнання[[#This Row],[ДАТА ВИПУСКУ]],\"\")","v":{"v":420,"d":"420 дн."}}]
[null,"ЕЛЕМЕНТ0013","додатковий монітор","Працівник 8",{"$f":"TODAY()-250","v":"2012-05-25"},{"$f":"IF(tblЗапаси_обладнання[[#This Row],[ДАТА ВИПУСКУ]]<>\"\",TODAY()-tblЗапаси_обладнання[[#This Row],[ДАТА ВИПУСКУ]],\"\")","v":{"v":250,"d":"250 дн."}}]
[null,"ЕЛЕМЕНТ0014","кавоварка","Працівник 9",{"$f":"TODAY()-45","v":"2012-12-16"},{"$f":"IF(tblЗапаси_обладнання[[#This Row],[ДАТА ВИПУСКУ]]<>\"\",TODAY()-tblЗапаси_обладнання[[#This Row],[ДАТА ВИПУСКУ]],\"\")","v":{"v":45,"d":"45 дн."}}]
[null,"ЕЛЕМЕНТ0015","бланк","Працівник 13",{"$f":"TODAY()-502","v":"2011-09-16"},{"$f":"IF(tblЗапаси_обладнання[[#This Row],[ДАТА ВИПУСКУ]]<>\"\",TODAY()-tblЗапаси_обладнання[[#This Row],[ДАТА ВИПУСКУ]],\"\")","v":{"v":502,"d":"502 дн."}}]
[null,"ЕЛЕМЕНТ0016","сканер","Працівник 1",{"$f":"TODAY()-350","v":"2012-02-15"},{"$f":"IF(tblЗапаси_обладнання[[#This Row],[ДАТА ВИПУСКУ]]<>\"\",TODAY()-tblЗапаси_обладнання[[#This Row],[ДАТА ВИПУСКУ]],\"\")","v":{"v":350,"d":"350 дн."}}]
[null,"ЕЛЕМЕНТ0017","копіювальна техніка","Працівник 19",{"$f":"TODAY()-125","v":"2012-09-27"},{"$f":"IF(tblЗапаси_обладнання[[#This Row],[ДАТА ВИПУСКУ]]<>\"\",TODAY()-tblЗапаси_обладнання[[#This Row],[ДАТА ВИПУСКУ]],\"\")","v":{"v":125,"d":"125 дн."}}]
[null,"ЕЛЕМЕНТ0018","дошка","Працівник 15",{"$f":"TODAY()-90","v":"2012-11-01"},{"$f":"IF(tblЗапаси_обладнання[[#This Row],[ДАТА ВИПУСКУ]]<>\"\",TODAY()-tblЗапаси_обладнання[[#This Row],[ДАТА ВИПУСКУ]],\"\")","v":{"v":90,"d":"90 дн."}}]
[null,"ЕЛЕМЕНТ0019","стілець","Працівник 16",{"$f":"TODAY()-730","v":"2011-01-31"},{"$f":"IF(tblЗапаси_обладнання[[#This Row],[ДАТА ВИПУСКУ]]<>\"\",TODAY()-tblЗапаси_обладнання[[#This Row],[ДАТА ВИПУСКУ]],\"\")","v":{"v":730,"d":"730 дн."}}]
[null,"ЕЛЕМЕНТ0020","серветка для витирання пилу (1 набір)","Працівник 3",{"$f":"TODAY()-540","v":"2011-08-09"},{"$f":"IF(tblЗапаси_обладнання[[#This Row],[ДАТА ВИПУСКУ]]<>\"\",TODAY()-tblЗапаси_обладнання[[#This Row],[ДАТА ВИПУСКУ]],\"\")","v":{"v":540,"d":"540 дн."}}]
[null,"ЕЛЕМЕНТ0021","лазерний принтер","Працівник 7",{"$f":"TODAY()-18","v":"2013-01-12"},{"$f":"IF(tblЗапаси_обладнання[[#This Row],[ДАТА ВИПУСКУ]]<>\"\",TODAY()-tblЗапаси_обладнання[[#This Row],[ДАТА ВИПУСКУ]],\"\")","v":{"v":18,"d":"18 дн."}}]
[null,"ЕЛЕМЕНТ0022","ноутбук","Працівник 8",{"$f":"TODAY()-283","v":"2012-04-22"},{"$f":"IF(tblЗапаси_обладнання[[#This Row],[ДАТА ВИПУСКУ]]<>\"\",TODAY()-tblЗапаси_обладнання[[#This Row],[ДАТА ВИПУСКУ]],\"\")","v":{"v":283,"d":"283 дн."}}]
[null,"ЕЛЕМЕНТ0023","бланк","Працівник 9",{"$f":"TODAY()-479","v":"2011-10-09"},{"$f":"IF(tblЗапаси_обладнання[[#This Row],[ДАТА ВИПУСКУ]]<>\"\",TODAY()-tblЗапаси_обладнання[[#This Row],[ДАТА ВИПУСКУ]],\"\")","v":{"v":479,"d":"479 дн."}}]
[null,"ЕЛЕМЕНТ0024","лазерний принтер","Працівник 19",{"$f":"TODAY()-355","v":"2012-02-10"},{"$f":"IF(tblЗапаси_обладнання[[#This Row],[ДАТА ВИПУСКУ]]<>\"\",TODAY()-tblЗапаси_обладнання[[#This Row],[ДАТА ВИПУСКУ]],\"\")","v":{"v":355,"d":"355 дн."}}]
[null,"ЕЛЕМЕНТ0025","стіл","Працівник 7",{"$f":"TODAY()-28","v":"2013-01-02"},{"$f":"IF(tblЗапаси_обладнання[[#This Row],[ДАТА ВИПУСКУ]]<>\"\",TODAY()-tblЗапаси_обладнання[[#This Row],[ДАТА ВИПУСКУ]],\"\")","v":{"v":28,"d":"28 дн."}}]
[null,"ЕЛЕМЕНТ0026","дошка","Працівник 8",{"$f":"TODAY()-28","v":"2013-01-02"},{"$f":"IF(tblЗапаси_обладнання[[#This Row],[ДАТА ВИПУСКУ]]<>\"\",TODAY()-tblЗапаси_обладнання[[#This Row],[ДАТА ВИПУСКУ]],\"\")","v":{"v":28,"d":"28 дн."}}]
[null,"ЕЛЕМЕНТ0027","ноутбук","Працівник 19",{"$f":"TODAY()-736","v":"2011-01-25"},{"$f":"IF(tblЗапаси_обладнання[[#This Row],[ДАТА ВИПУСКУ]]<>\"\",TODAY()-tblЗапаси_обладнання[[#This Row],[ДАТА ВИПУСКУ]],\"\")","v":{"v":736,"d":"736 дн."}}]
[null,"ЕЛЕМЕНТ0028","стіл","Працівник 12",{"$f":"TODAY()-68","v":"2012-11-23"},{"$f":"IF(tblЗапаси_обладнання[[#This Row],[ДАТА ВИПУСКУ]]<>\"\",TODAY()-tblЗапаси_обладнання[[#This Row],[ДАТА ВИПУСКУ]],\"\")","v":{"v":68,"d":"68 дн."}}]
[null,"ЕЛЕМЕНТ0029","сканер","Працівник 14",{"$f":"TODAY()-67","v":"2012-11-24"},{"$f":"IF(tblЗапаси_обладнання[[#This Row],[ДАТА ВИПУСКУ]]<>\"\",TODAY()-tblЗапаси_обладнання[[#This Row],[ДАТА ВИПУСКУ]],\"\")","v":{"v":67,"d":"67 дн."}}]
[null,"ЕЛЕМЕНТ0030","кавоварка","Працівник 3",{"$f":"TODAY()-149","v":"2012-09-03"},{"$f":"IF(tblЗапаси_обладнання[[#This Row],[ДАТА ВИПУСКУ]]<>\"\",TODAY()-tblЗапаси_обладнання[[#This Row],[ДАТА ВИПУСКУ]],\"\")","v":{"v":149,"d":"149 дн."}}]

{"sheet":"Настройки","index":1,"n_rows":23,"n_cols":4,"rows_kept":23}
[]
[]
[null,"ПРАЦІВНИКИ",null,"ЕЛЕМЕНТИ"]
[null,"Працівник 1",null,"стілець"]
[null,"Працівник 2",null,"кавоварка"]
[null,"Працівник 3",null,"копіювальна техніка"]
[null,"Працівник 4",null,"настільний комп'ютер"]
[null,"Працівник 5",null,"серветка для витирання пилу (1 набір)"]
[null,"Працівник 6",null,"додатковий монітор"]
[null,"Працівник 7",null,"струминний принтер"]
[null,"Працівник 8",null,"ноутбук"]
[null,"Працівник 9",null,"лазерний принтер"]
[null,"Працівник 10",null,"маркери (3 упаковки)"]
[null,"Працівник 11",null,"сканер"]
[null,"Працівник 12",null,"бланк"]
[null,"Працівник 13",null,"стіл"]
[null,"Працівник 14",null,"USB-носій"]
[null,"Працівник 15",null,"дошка"]
[null,"Працівник 16"]
[null,"Працівник 17"]
[null,"Працівник 18"]
[null,"Працівник 19"]
[null,"Працівник 20"]